bitfinex/quotes_BTCUSD_20250620
["timestamp","ask_amount","ask_price","bid_price","bid_amount"]
[1750456445131,1.28289187,103580.0,103570.0,0.22994544]
[1750456445358,2.01182162,103580.0,103570.0,0.22994544]
[1750456445580,2.26808973,103580.0,103570.0,0.21063662]
[1750456445762,2.17281988,103580.0,103570.0,0.22994675]
[1750456446063,2.18247425,103580.0,103570.0,0.23960168]
[1750456446289,2.18247425,103580.0,103570.0,0.23960121]
[1750456446421,1.98938679,103580.0,103570.0,0.23960121]
[1750456446651,1.95798679,103580.0,103570.0,0.23960121]
[1750456446861,1.94745242,103580.0,103570.0,0.23960074]
[1750456447268,2.15019425,103580.0,103570.0,0.229946]
[1750456447489,2.31031425,103580.0,103570.0,0.229946]
[1750456448312,2.11722679,103580.0,103570.0,0.229946]
[1750456448456,2.08632679,103580.0,103570.0,0.229946]
[1750456449756,1.92620679,103580.0,103570.0,0.229946]
[1750456450433,1.96852679,103580.0,103570.0,0.229946]
[1750456450650,2.16161425,103580.0,103570.0,0.229946]
[1750456450857,1.95887242,103580.0,103570.0,0.23960074]
[1750456451092,1.95887233,103580.0,103570.0,0.30180028]
[1750456451299,1.26358462,103580.0,103570.0,0.30295028]
[1750456451523,0.80179231,103580.0,103570.0,0.30295028]
[1750456452408,0.50044791,103590.0,103580.0,0.28424946]
[1750456452544,0.84044791,103590.0,103580.0,0.28539946]
[1750456452963,0.81144491,103590.0,103580.0,0.28539946]
[1750456453622,0.80179231,103590.0,103580.0,0.28539946]
[1750456454315,0.80179231,103590.0,103580.0,0.28424946]
[1750456455097,0.80179231,103590.0,103580.0,0.28739946]
[1750456461011,0.80179231,103590.0,103580.0,0.28624946]
[1750456462004,0.80179231,103590.0,103580.0,0.28739946]
[1750456464012,0.80179231,103590.0,103580.0,0.28624946]
[1750456465771,0.80179231,103590.0,103580.0,0.28739946]
[1750456466673,0.46179231,103590.0,103580.0,0.28739946]
[1750456479970,0.26149671,103590.0,103580.0,0.28739946]
[1750456483908,0.84399231,103600.0,103590.0,0.253028]
[1750456484198,1.30583159,103600.0,103590.0,0.253028]
[1750456484595,1.30583159,103600.0,103590.0,0.283928]
[1750456485217,1.30583159,103600.0,103590.0,0.285118]
[1750456485660,1.30783159,103600.0,103590.0,0.285118]
[1750456486092,1.30883159,103600.0,103590.0,0.285118]
[1750456486302,1.30883159,103600.0,103590.0,0.283928]
[1750456486719,0.84703928,103600.0,103590.0,0.283928]
[1750456488299,0.84703928,103600.0,103590.0,0.443768]
[1750456489212,0.84703928,103600.0,103590.0,0.444958]
[1750456489845,0.34304697,103600.0,103590.0,0.54023693]
[1750456490056,0.80483928,103600.0,103590.0,0.54023693]
[1750456491994,0.80283928,103600.0,103590.0,0.54023693]
[1750456492176,0.80283928,103600.0,103590.0,0.54123693]
[1750456492365,0.80183928,103600.0,103590.0,0.54123693]
[1750456492779,0.80183928,103600.0,103590.0,0.54223693]
[1750456497864,0.80183928,103600.0,103590.0,0.54143693]
[1750456498086,0.34004697,103600.0,103590.0,0.54143693]
[1750456498325,4.697e-05,103600.0,103590.0,0.54143693]
[1750456499019,0.71947691,103610.0,103600.0,0.28410658]
[1750456499250,0.71947691,103610.0,103600.0,0.28529658]
[1750456499483,0.37947691,103610.0,103600.0,0.28410658]
[1750456500850,0.38047691,103610.0,103600.0,0.28410658]
[1750456501299,0.46279231,103610.0,103600.0,0.28410658]
[1750456501529,0.46479231,103610.0,103600.0,0.28410658]
[1750456502627,0.46479231,103610.0,103600.0,0.28530658]
[1750456503900,0.46379231,103610.0,103600.0,0.28530658]
[1750456504104,0.46179231,103610.0,103600.0,0.28530658]
[1750456504330,0.46179231,103610.0,103600.0,0.28630658]
[1750456505020,0.46179231,103610.0,103600.0,0.28730658]
[1750456507355,0.68133645,103620.0,103610.0,0.22198516]
[1750456507582,2.22980707,103620.0,103610.0,0.22198516]
[1750456507785,2.0603968,103620.0,103610.0,0.22198516]
[1750456508634,2.0603968,103620.0,103610.0,0.21233424]
[1750456508635,2.10982219,103620.0,103610.0,0.21233424]
[1750456508852,2.11947255,103620.0,103610.0,0.23163636]
[1750456509066,2.11947246,103620.0,103610.0,0.23163636]
[1750456510476,2.11947246,103620.0,103610.0,0.24128728]
[1750456510754,2.11947246,103620.0,103610.0,0.23163636]
[1750456510965,2.11947246,103620.0,103610.0,0.24128728]
[1750456511706,2.10982219,103620.0,103610.0,0.24128728]
[1750456511964,2.07804219,103620.0,103610.0,0.24128728]
[1750456513138,1.64361079,103620.0,103610.0,0.24128728]
[1750456513614,1.65326059,103620.0,103610.0,0.24128728]
[1750456514778,1.65326059,103620.0,103610.0,0.23163636]
[1750456515016,1.65326059,103620.0,103610.0,0.24128728]
[1750456515459,1.67470983,103620.0,103610.0,0.24128728]
[1750456515901,1.05070383,103620.0,103610.0,0.24128728]
[1750456518115,1.14597368,103620.0,103610.0,0.24128728]
[1750456521202,1.82346068,103620.0,103610.0,0.21233442]
[1750456521431,1.98306068,103620.0,103610.0,0.21233442]
[1750456521650,2.17607361,103620.0,103610.0,0.19303156]
[1750456521834,2.16642381,103620.0,103610.0,0.20268313]
[1750456522050,2.16642381,103620.0,103610.0,0.21233452]
[1750456522444,2.16642381,103620.0,103610.0,0.22198581]
[1750456523874,2.16642381,103620.0,103610.0,0.23163701]
[1750456524312,1.97341079,103620.0,103610.0,0.23163655]
[1750456524532,0.02444924,103620.0,103610.0,0.46668709]
[1750456526400,0.02444924,103620.0,103610.0,0.9284794]
[1750456526637,0.02144924,103620.0,103610.0,0.9284794]
[1750456526894,0.001,103620.0,103610.0,0.9294794]
[1750456527165,0.001,103620.0,103610.0,0.9284794]
[1750456527430,0.46184231,103630.0,103620.0,0.28536374]
[1750456528689,0.46184231,103630.0,103620.0,0.28636374]
[1750456529595,0.46184231,103630.0,103620.0,0.28736374]
[1750456532708,0.48368373,103630.0,103620.0,0.28736374]
[1750456533390,0.02189142,103630.0,103620.0,0.28736374]
[1750456533615,0.48368373,103630.0,103620.0,0.28736374]
[1750456533878,0.02189142,103630.0,103620.0,0.28736374]
[1750456539109,0.02189142,103630.0,103620.0,0.38264267]
[1750456539320,0.02189142,103630.0,103620.0,0.84443498]
[1750456540848,5e-05,103630.0,103620.0,0.84443498]
[1750456549245,5e-05,103630.0,103620.0,1.30622729]
[1750456549459,5e-05,103630.0,103620.0,0.84443498]
[1750456551956,5e-05,103630.0,103620.0,1.30622729]
[1750456553011,5e-05,103630.0,103620.0,1.30522729]
[1750456554255,5e-05,103630.0,103620.0,1.30422729]
[1750456554561,0.00105,103630.0,103620.0,1.30422729]
[1750456556728,0.00105,103630.0,103620.0,1.31876814]
[1750456557157,0.00105,103630.0,103620.0,1.34774714]
[1750456557356,0.00105,103630.0,103620.0,1.54894714]
[1750456557508,0.00105,103630.0,103620.0,1.49252629]
[1750456557851,0.00105,103630.0,103620.0,1.33320629]
[1750456558052,0.00105,103630.0,103620.0,1.53440629]
[1750456558824,0.00105,103630.0,103620.0,1.50542729]
[1750456559647,0.00105,103630.0,103620.0,0.58184267]
[1750456559846,0.00105,103630.0,103620.0,1.30422729]
[1750456560047,0.00105,103630.0,103620.0,0.58184267]
[1750456560284,1.14545401,103670.0,103660.0,0.20258527]
[1750456560533,2.26005885,103670.0,103660.0,0.20258527]
[1750456560734,2.26005885,103670.0,103660.0,0.19293845]
[1750456560957,2.26005885,103670.0,103660.0,0.20258537]
[1750456561170,2.26005885,103670.0,103660.0,0.21223219]
[1750456561655,2.26605885,103670.0,103660.0,0.20258537]
[1750456561915,2.26605885,103670.0,103660.0,0.21223219]
[1750456562626,2.28797627,103670.0,103660.0,0.21223219]
[1750456563509,2.25480642,103670.0,103660.0,0.21223219]
[1750456564145,2.25480642,103670.0,103650.0,0.39082679]
[1750456564146,0.70539891,103660.0,103650.0,0.39082679]
[1750456564390,1.00497753,103660.0,103650.0,0.39082679]
[1750456565034,1.02427034,103660.0,103650.0,0.39082679]
[1750456565241,1.02627034,103660.0,103650.0,0.38954679]
[1750456565859,1.02627025,103660.0,103650.0,0.38954679]
[1750456566087,1.01662361,103660.0,103650.0,0.38954679]
[1750456567416,1.01662361,103660.0,103650.0,0.38950679]
[1750456567818,1.00697706,103660.0,103650.0,0.38950679]
[1750456568180,0.79219986,103660.0,103650.0,0.38950679]
[1750456569151,0.80184613,103660.0,103650.0,0.38950679]
[1750456570795,0.79219986,103660.0,103650.0,0.38950679]
[1750456571016,0.79219986,103660.0,103650.0,0.41970679]
[1750456571423,0.47343839,103660.0,103650.0,0.41970679]
[1750456571625,0.48308456,103660.0,103650.0,0.41970679]
[1750456572064,0.48308456,103660.0,103650.0,0.45140679]
[1750456572287,0.94487687,103660.0,103650.0,0.45140679]
[1750456572697,0.9352307,103660.0,103650.0,0.45140679]
[1750456573342,0.92558462,103660.0,103650.0,0.45140679]
[1750456573542,0.46379231,103660.0,103650.0,0.45264679]
[1750456579010,0.46179231,103660.0,103650.0,0.45264679]
[1750456579485,0.46179231,103660.0,103650.0,0.45364679]
[1750456584393,0.96059047,103670.0,103660.0,0.22187809]
[1750456584602,1.44167373,103670.0,103660.0,0.24513182]
[1750456584834,1.65388527,103670.0,103660.0,0.22187827]
[1750456585056,1.45131944,103670.0,103660.0,0.23152463]
[1750456585269,1.46096524,103670.0,103660.0,0.2411709]
[1750456585759,1.46196524,103670.0,103660.0,0.2411709]
[1750456585956,1.46396524,103670.0,103660.0,0.2411709]
[1750456588313,1.46396524,103670.0,103660.0,0.2731709]
[1750456588676,1.45431944,103670.0,103660.0,0.2731709]
[1750456591466,1.45431944,103670.0,103660.0,0.3054709]
[1750456592007,1.47301153,103670.0,103660.0,0.28617837]
[1750456592408,1.92515804,103670.0,103660.0,0.29582464]
[1750456593686,1.91551224,103670.0,103660.0,0.29582464]
[1750456593879,1.90646595,103670.0,103660.0,0.29582464]
[1750456594051,1.44467364,103670.0,103660.0,0.29582464]
[1750456594453,1.45431925,103670.0,103660.0,0.29582464]
[1750456595682,1.45431925,103670.0,103660.0,0.29582501]
[1750456597612,1.45431925,103670.0,103660.0,0.2958251]
[1750456598154,2.1283231,103670.0,103660.0,0.2958251]
[1750456598410,1.86096749,103670.0,103660.0,0.2958251]
[1750456600995,1.8700144,103670.0,103660.0,0.2958251]
[1750456602356,1.87001555,103670.0,103660.0,0.2958251]
[1750456603650,1.86037021,103670.0,103660.0,0.2958251]
[1750456605662,1.86036975,103670.0,103660.0,0.2958251]
[1750456608041,1.86036951,103670.0,103660.0,0.2958251]
[1750456610946,2.34067663,103670.0,103660.0,0.29582519]
[1750456611161,2.34972406,103670.0,103660.0,0.29582519]
[1750456611576,1.88793175,103670.0,103660.0,0.29582519]
[1750456612426,1.69501191,103670.0,103660.0,0.30547155]
[1750456612645,1.69501191,103670.0,103660.0,0.3054709]
[1750456612863,1.53601191,103670.0,103660.0,0.3054709]
[1750456613307,1.72893175,103670.0,103660.0,0.3054709]
[1750456614045,1.72893173,103670.0,103660.0,0.3054709]
[1750456614890,1.88793173,103670.0,103660.0,0.3054709]
[1750456615937,1.88793173,103670.0,103660.0,0.29582463]
[1750456616702,1.95248439,103670.0,103660.0,0.29582463]
[1750456617322,1.94343687,103670.0,103660.0,0.29582463]
[1750456617561,1.87888432,103670.0,103660.0,0.29582463]
[1750456623015,1.71988432,103670.0,103660.0,0.29582463]
[1750456624186,1.71988432,103670.0,103660.0,0.27247863]
[1750456625280,1.72893218,103670.0,103660.0,0.27247863]
[1750456626232,1.72893218,103670.0,103660.0,0.27361863]
[1750456627313,1.72893218,103670.0,103660.0,0.27247863]
[1750456627903,1.72893256,103670.0,103660.0,0.27247863]
[1750456628063,1.82420241,103670.0,103660.0,0.26397227]
[1750456629879,1.82420241,103670.0,103660.0,0.26283227]
[1750456632545,1.81515417,103670.0,103660.0,0.26283227]
[1750456634178,1.82420254,103670.0,103660.0,0.25318582]
[1750456636607,1.55822983,103670.0,103660.0,0.25318582]
[1750456637969,1.59840552,103670.0,103660.0,0.25432582]
[1750456639298,1.58935715,103670.0,103660.0,0.25318582]
[1750456639493,1.59840593,103670.0,103660.0,0.25318582]
[1750456640353,1.59840593,103670.0,103660.0,0.24353927]
[1750456640553,1.58876032,103670.0,103660.0,0.24353927]
[1750456640954,1.58876032,103670.0,103660.0,0.253186]
[1750456641297,1.58876032,103670.0,103660.0,0.26283264]
[1750456641453,1.57971154,103670.0,103660.0,0.26283264]
[1750456642110,1.58875979,103670.0,103660.0,0.26283264]
[1750456642349,1.58875975,103670.0,103660.0,0.26283264]
[1750456642565,1.58875975,103670.0,103660.0,0.26397264]
[1750456642788,1.43178549,103670.0,103660.0,0.26397264]
[1750456642992,1.43178549,103670.0,103660.0,0.26283264]
[1750456643201,1.22646805,103670.0,103660.0,0.26283264]
[1750456643616,1.23611376,103670.0,103660.0,0.26283264]
[1750456643819,1.23611376,103670.0,103660.0,0.26397264]
[1750456647194,1.23611376,103670.0,103660.0,0.27361919]
[1750456647512,1.22706555,103670.0,103660.0,0.27361919]
[1750456647910,1.22706555,103670.0,103660.0,0.27247919]
[1750456648157,1.23611373,103670.0,103660.0,0.27247919]
[1750456648378,1.57611373,103670.0,103660.0,0.27247919]
[1750456648590,1.56706555,103670.0,103660.0,0.27247919]
[1750456648815,1.57611373,103670.0,103660.0,0.27247919]
[1750456649026,2.13317589,103670.0,103660.0,0.07394692]
[1750456649234,2.02826033,103670.0,103660.0,0.0643]
[1750456649621,2.02826033,103670.0,103660.0,0.25723845]
[1750456651655,2.02826033,103670.0,103660.0,0.26688537]
[1750456652274,2.02826021,103670.0,103660.0,0.26688537]
[1750456652858,2.02826021,103670.0,103660.0,0.27653219]
[1750456653262,2.18702021,103670.0,103660.0,0.27653219]
[1750456656186,2.18702021,103670.0,103660.0,0.28617892]
[1750456657029,2.18702024,103670.0,103660.0,0.28617892]
[1750456657237,2.18702024,103670.0,103660.0,0.29582556]
[1750456658543,2.18702024,103670.0,103660.0,0.29707556]
[1750456658749,2.28229009,103670.0,103660.0,0.29707556]
[1750456659900,2.273242,103670.0,103660.0,0.29707556]
[1750456660106,2.2822901,103670.0,103660.0,0.29707556]
[1750456660309,2.2822901,103670.0,103660.0,0.29582556]
[1750456662567,1.95840072,103670.0,103660.0,0.29582556]
[1750456662778,2.15132056,103670.0,103660.0,0.29582556]
[1750456663705,2.15132056,103670.0,103660.0,0.30547211]
[1750456664587,2.1801775,103670.0,103660.0,0.30547146]
[1750456664811,2.18982349,103670.0,103660.0,0.30547146]
[1750456664936,2.18982349,103670.0,103660.0,0.29707519]
[1750456665361,1.25659344,103670.0,103660.0,0.29707519]
[1750456665597,2.17053235,103670.0,103660.0,0.29707519]
[1750456665769,2.17053302,103670.0,103660.0,0.29707519]
[1750456667525,1.2469484,103670.0,103660.0,0.29707519]
[1750456667728,2.17053302,103670.0,103660.0,0.29707519]
[1750456667907,2.17053302,103670.0,103660.0,0.29582519]
[1750456668890,2.17053302,103670.0,103660.0,0.30547164]
[1750456669301,2.17053302,103670.0,103660.0,0.30672164]
[1750456671031,2.17053302,103670.0,103660.0,0.30547164]
[1750456671596,2.16148425,103670.0,103660.0,0.30547164]
[1750456673311,2.35203303,103670.0,103660.0,0.276532]
[1750456674317,2.25676318,103670.0,103660.0,0.276532]
[1750456674961,2.25676318,103670.0,103660.0,0.28617864]
[1750456675389,2.25676318,103670.0,103660.0,0.29582519]
[1750456675834,2.25676318,103670.0,103660.0,0.29707519]
[1750456678842,2.25676318,103670.0,103660.0,0.29582519]
[1750456679916,2.25676318,103670.0,103660.0,0.29707519]
[1750456680325,1.33317856,103670.0,103660.0,0.29707519]
[1750456680532,2.25676318,103670.0,103660.0,0.30672164]
[1750456681353,1.33317856,103670.0,103660.0,0.30672164]
[1750456681565,2.25676318,103670.0,103660.0,0.30672164]
[1750456681969,2.26581165,103670.0,103660.0,0.30672164]
[1750456683216,2.26581241,103670.0,103660.0,0.30672164]
[1750456683422,2.28391093,103670.0,103660.0,0.30672118]
[1750456684032,1.91672442,103670.0,103660.0,0.30672118]
[1750456684236,2.09457574,103670.0,103660.0,0.30672072]
[1750456684658,2.07647722,103670.0,103660.0,0.30672072]
[1750456685099,2.29714102,103670.0,103660.0,0.30672072]
[1750456686134,2.2971413,103670.0,103660.0,0.30672072]
[1750456686573,2.30678645,103670.0,103660.0,0.30672072]
[1750456687612,2.34822645,103670.0,103660.0,0.30672072]
[1750456687823,2.13720822,103670.0,103660.0,0.30672072]
[1750456688025,2.15530652,103670.0,103660.0,0.30672072]
[1750456688434,2.11851314,103670.0,103660.0,0.30672072]
[1750456689477,2.12815903,103670.0,103660.0,0.30672072]
[1750456689907,2.32107887,103670.0,103660.0,0.30672072]
[1750456690332,2.12815903,103670.0,103660.0,0.30672072]
[1750456690547,2.32107887,103670.0,103660.0,0.30672072]
[1750456693950,2.33012678,103670.0,103660.0,0.30672072]
[1750456696182,2.17156678,103670.0,103660.0,0.30672072]
[1750456696811,2.17156681,103670.0,103660.0,0.30672072]
[1750456697260,2.13012681,103670.0,103660.0,0.30672072]
[1750456697691,2.13012765,103670.0,103660.0,0.30672072]
[1750456698112,1.93720781,103670.0,103660.0,0.30672072]
[1750456698330,2.13012765,103670.0,103660.0,0.30672072]
[1750456698739,2.13012765,103670.0,103660.0,0.29707445]
[1750456698941,2.12107971,103670.0,103660.0,0.29707445]
[1750456699830,2.11143428,103670.0,103660.0,0.29707445]
[1750456700878,1.92148328,103670.0,103660.0,0.29707445]
[1750456701074,1.63054228,103670.0,103660.0,0.29707445]
[1750456701315,1.92148328,103670.0,103660.0,0.29707445]
[1750456705226,1.91183776,103670.0,103660.0,0.28742809]
[1750456708755,1.91183776,103670.0,103660.0,0.27778164]
[1750456709192,1.92856729,103670.0,103660.0,0.27778164]
[1750456709905,1.91892149,103670.0,103660.0,0.27778164]
[1750456710325,1.92796952,103670.0,103660.0,0.27778164]
[1750456711860,1.92796952,103670.0,103660.0,0.27653201]
[1750456712270,1.9347555,103670.0,103660.0,0.27768201]
[1750456712485,1.93475545,103670.0,103660.0,0.27768201]
[1750456712697,1.91802592,103670.0,103660.0,0.27768201]
[1750456712884,1.90219196,103670.0,103660.0,0.27768201]
[1750456713178,1.91802592,103670.0,103660.0,0.27768201]
[1750456714998,1.93612324,103670.0,103660.0,0.27768201]
[1750456715241,1.91802592,103670.0,103660.0,0.27768201]
[1750456715699,1.90219196,103670.0,103660.0,0.27768201]
[1750456715921,0.99444225,103670.0,103660.0,0.27768201]
[1750456716174,1.91802753,103670.0,103660.0,0.27768201]
[1750456716394,1.91802753,103670.0,103660.0,0.27653201]
[1750456717334,1.91802753,103670.0,103660.0,0.27768201]
[1750456718739,1.93612691,103670.0,103660.0,0.27768201]
[1750456722057,1.91802757,103670.0,103660.0,0.27768201]
[1750456722290,1.90838168,103670.0,103660.0,0.26803537]
[1750456722537,1.90838168,103670.0,103660.0,0.27768219]
[1750456722759,1.89933278,103670.0,103660.0,0.28732892]
[1750456722955,1.89254607,103670.0,103660.0,0.28732892]
[1750456723409,1.89254607,103670.0,103660.0,0.29697556]
[1750456724192,1.95094983,103670.0,103660.0,0.29697556]
[1750456724945,1.89254607,103670.0,103660.0,0.29697556]
[1750456727381,1.89254607,103670.0,103660.0,0.29582556]
[1750456727727,1.89254607,103670.0,103660.0,0.29697556]
[1750456730256,1.89254607,103670.0,103660.0,0.30662211]
[1750456734334,2.52711923,103670.0,103660.0,0.032]
[1750456734541,0.19295706,103650.0,103640.0,0.35114003]
[1750456734733,0.19295706,103650.0,103630.0,0.22194138]
[1750456734734,0.02894466,103640.0,103630.0,0.22194138]
[1750456734962,1.43644671,103640.0,103630.0,0.20264401]
[1750456735166,1.47776671,103640.0,103630.0,0.21229363]
[1750456735788,1.46811849,103640.0,103630.0,0.21229363]
[1750456735986,1.52145442,103640.0,103630.0,0.21229363]
[1750456736206,1.52245442,103640.0,103630.0,0.21229363]
[1750456736560,1.51280592,103640.0,103630.0,0.20264401]
[1750456737058,1.67100592,103640.0,103630.0,0.21229363]
[1750456737629,1.67100592,103640.0,103630.0,0.24469363]
[1750456740345,1.76628485,103640.0,103630.0,0.23504401]
[1750456740552,0.84323361,103630.0,103620.0,0.25316439]
[1750456740757,1.52208808,103630.0,103620.0,0.26281457]
[1750456740969,1.51243911,103630.0,103620.0,0.26281457]
[1750456741175,1.51243911,103630.0,103620.0,0.25316439]
[1750456741380,1.50278977,103630.0,103620.0,0.23386357]
[1750456741555,1.50278977,103630.0,103620.0,0.24351412]
[1750456741787,0.57925223,103630.0,103620.0,0.25416458]
[1750456741993,0.29098808,103630.0,103620.0,0.30606456]
[1750456742190,0.78172849,103630.0,103620.0,0.30729456]
[1750456742553,0.78172849,103630.0,103620.0,0.30529456]
[1750456743527,0.79137746,103630.0,103620.0,0.30529456]
[1750456744147,0.79137746,103630.0,103620.0,0.30429456]
[1750456745214,1.32437176,103630.0,103620.0,0.30429456]
[1750456745431,1.33402147,103630.0,103620.0,0.30429456]
[1750456747219,0.99402147,103630.0,103620.0,0.29464457]
[1750456747540,1.44616481,103630.0,103620.0,0.30306475]
[1750456748104,1.78616481,103630.0,103620.0,0.30306428]
[1750456748323,1.88143466,103630.0,103620.0,0.30306428]
[1750456748522,1.78616481,103630.0,103620.0,0.30306428]
[1750456750639,1.78616481,103630.0,103620.0,0.25481293]
[1750456750838,1.77651566,103630.0,103620.0,0.23509339]
[1750456751020,1.77651566,103630.0,103620.0,0.23386339]
[1750456752927,0.53301293,103620.0,103610.0,0.19313156]
[1750456753153,2.41918064,103620.0,103610.0,0.0001]
[1750456753341,2.41918064,103620.0,103600.0,0.23470232]
[1750456753342,0.00965073,103610.0,103600.0,0.44399649]
[1750456753549,0.93323535,103610.0,103600.0,0.28583649]
[1750456753762,0.49074553,103610.0,103600.0,0.45364853]
[1750456754191,0.49074544,103610.0,103600.0,0.45364853]
[1750456754407,0.78168644,103610.0,103600.0,0.45364853]
[1750456754833,0.78168644,103610.0,103600.0,0.29548853]
[1750456755061,1.58347875,103610.0,103600.0,0.45364853]
[1750456755268,1.58347875,103610.0,103600.0,0.45664853]
[1750456755471,1.13133773,103610.0,103600.0,0.45664853]
[1750456755679,1.12168634,103610.0,103600.0,0.45664853]
[1750456755889,1.11203505,103610.0,103600.0,0.45664853]
[1750456756021,1.12168634,103610.0,103600.0,0.45664853]
[1750456756529,0.92470817,103610.0,103600.0,0.45664862]
[1750456756738,0.92470817,103610.0,103600.0,0.29848862]
[1750456757244,1.59883378,103610.0,103600.0,0.29848872]
[1750456757424,0.94400973,103610.0,103600.0,0.30814057]
[1750456758366,0.93435834,103610.0,103600.0,0.30814057]
[1750456759152,0.94400973,103610.0,103600.0,0.30814057]
[1750456759916,0.60400973,103610.0,103600.0,0.30814057]
[1750456760135,0.59435834,103610.0,103600.0,0.30814057]
[1750456763794,0.58470705,103610.0,103600.0,0.30814057]
[1750456763999,0.59435825,103610.0,103600.0,0.30814057]
[1750456765700,0.58470705,103610.0,103600.0,0.30814057]
[1750456765916,0.46179231,103610.0,103600.0,0.30814057]
[1750456766131,5.74979224,103620.0,103610.0,0.28621516]
[1750456766340,5.60132242,103620.0,103610.0,0.28621516]
[1750456766552,5.60132232,103620.0,103610.0,0.28621516]
[1750456767361,6.06311463,103620.0,103610.0,0.28721516]
[1750456767569,5.55047214,103620.0,103610.0,0.28721516]
[1750456767768,5.56012213,103620.0,103610.0,0.28921516]
[1750456768215,6.02191444,103620.0,103610.0,0.38564531]
[1750456768439,6.03156462,103620.0,103610.0,0.28921516]
[1750456768659,6.03156452,103620.0,103610.0,0.28921516]
[1750456769996,6.04121479,103620.0,103610.0,0.28921516]
[1750456770867,6.05086515,103620.0,103610.0,0.28921516]
[1750456772765,6.38121488,103620.0,103610.0,0.28921516]
[1750456773614,6.39086534,103620.0,103610.0,0.28921516]
[1750456776839,6.58387902,103620.0,103610.0,0.28921516]
[1750456778387,6.39086609,103620.0,103610.0,0.28921516]
[1750456780623,6.58387967,103620.0,103610.0,0.28921516]
[1750456781513,6.39086674,103620.0,103610.0,0.28921516]
[1750456782179,6.58387967,103620.0,103610.0,0.28921516]
[1750456783456,6.5392961,103620.0,103610.0,0.28921516]
[1750456784461,6.73230903,103620.0,103610.0,0.28921516]
[1750456786256,6.74195967,103620.0,103610.0,0.28921535]
[1750456788158,6.54894674,103620.0,103610.0,0.29886636]
[1750456788385,6.74195967,103620.0,103610.0,0.29886636]
[1750456790606,6.73230959,103620.0,103610.0,0.29886636]
[1750456792578,6.73230959,103620.0,103610.0,0.28921535]
[1750456797035,5.80872497,103620.0,103610.0,0.28921535]
[1750456797251,6.73230959,103620.0,103610.0,0.28921535]
[1750456798311,6.73230959,103620.0,103610.0,0.29886636]
[1750456798522,6.51034473,103620.0,103610.0,0.30851728]
[1750456798746,6.53929507,103620.0,103610.0,0.30851728]
[1750456798964,6.54894553,103620.0,103610.0,0.30851728]
[1750456799181,5.45763045,103620.0,103610.0,0.30851728]
[1750456799429,0.83082234,103620.0,103610.0,0.46655728]
[1750456799643,0.46179231,103620.0,103610.0,0.56183621]
[1750456800955,0.34508606,103630.0,103620.0,0.28599374]
[1750456801169,0.80687837,103630.0,103620.0,0.28599374]
[1750456801373,0.80183939,103630.0,103620.0,0.28599374]
[1750456801599,0.46183939,103630.0,103620.0,0.28599374]
[1750456801810,0.80183939,103630.0,103620.0,0.28599374]
[1750456803144,0.34969605,103630.0,103620.0,0.28599374]
[1750456803377,0.81148836,103630.0,103620.0,0.28599374]
[1750456803588,1.29257907,103630.0,103620.0,0.28599374]
[1750456803818,1.28292973,103630.0,103620.0,0.28599374]
[1750456804027,1.29257897,103630.0,103620.0,0.28476374]
[1750456804237,1.29257897,103630.0,103620.0,0.44276374]
[1750456804451,1.29257897,103630.0,103620.0,0.44398374]
[1750456804867,1.28292973,103630.0,103620.0,0.44398374]
[1750456805081,0.94292973,103630.0,103620.0,0.44398374]
[1750456805507,1.28292973,103630.0,103620.0,0.44398374]
[1750456806763,1.2636317,103630.0,103620.0,0.44398374]
[1750456806973,0.81148845,103630.0,103620.0,0.44398374]
[1750456807838,0.81148836,103630.0,103620.0,0.44398374]
[1750456809873,1.2636317,103630.0,103620.0,0.44398374]
[1750456810410,0.82109751,103630.0,103620.0,0.44398374]
[1750456810865,1.29253906,103630.0,103620.0,0.44398374]
[1750456811077,1.28288982,103630.0,103620.0,0.44276374]
[1750456811278,1.29253916,103630.0,103620.0,0.44276374]
[1750456811472,1.29253916,103630.0,103620.0,0.28476374]
[1750456811685,1.30218868,103630.0,103620.0,0.28476374]
[1750456812519,1.30218868,103630.0,103620.0,0.25246374]
[1750456812725,1.30218868,103630.0,103620.0,0.22196374]
[1750456812937,1.29253916,103630.0,103620.0,0.22196374]
[1750456813144,1.30218868,103630.0,103620.0,0.22196374]
[1750456813345,6.54518298,103630.0,103620.0,0.21231375]
[1750456813588,6.54518298,103630.0,103620.0,0.22196393]
[1750456813793,6.70314298,103630.0,103620.0,0.22196393]
[1750456814012,6.69349401,103630.0,103620.0,0.26181401]
[1750456814219,6.70314363,103630.0,103620.0,0.26181401]
[1750456814420,6.71279334,103630.0,103620.0,0.26181401]
[1750456815295,6.51979904,103630.0,103620.0,0.26181401]
[1750456815518,6.36183904,103630.0,103620.0,0.271464]
[1750456815748,6.54518419,103630.0,103620.0,0.26181401]
[1750456816015,6.33289056,103630.0,103620.0,0.271464]
[1750456816256,6.34253962,103630.0,103620.0,0.271464]
[1750456819216,6.34253962,103630.0,103620.0,0.303464]
[1750456821441,6.3328901,103630.0,103620.0,0.303464]
[1750456821657,6.34253962,103630.0,103620.0,0.303464]
[1750456822942,6.63080377,103630.0,103620.0,0.23286348]
[1750456823144,6.53553392,103630.0,103620.0,0.24251394]
[1750456823355,6.53553392,103630.0,103620.0,0.25216421]
[1750456823969,6.68384486,103630.0,103620.0,0.25216421]
[1750456825426,6.67419552,103630.0,103620.0,0.24251394]
[1750456825639,6.67419552,103630.0,103620.0,0.2521643]
[1750456825858,6.67419552,103630.0,103620.0,0.2834643]
[1750456826282,6.67419552,103630.0,103620.0,0.29311457]
[1750456828290,6.67419552,103630.0,103620.0,0.2834643]
[1750456829962,6.33418844,103630.0,103620.0,0.2834643]
[1750456830432,5.41060382,103630.0,103620.0,0.2834643]
[1750456830645,6.33418844,103630.0,103620.0,0.2834643]
[1750456831985,6.67418844,103630.0,103620.0,0.2834643]
[1750456836716,6.71522844,103630.0,103620.0,0.2834643]
[1750456843513,6.71522844,103630.0,103620.0,0.29311457]
[1750456844682,6.71522844,103630.0,103620.0,0.2834643]
[1750456845798,5.79164382,103630.0,103620.0,0.2834643]
[1750456845999,6.71522844,103630.0,103620.0,0.2834643]
[1750456848204,6.71522844,103630.0,103620.0,0.29311457]
[1750456850589,6.71522844,103630.0,103620.0,0.29432457]
[1750456851060,6.71522844,103630.0,103620.0,0.29311457]
[1750456851417,6.71522844,103630.0,103620.0,0.0615]
[1750456851418,6.70557892,103630.0,103620.0,0.0615]
[1750456851623,6.70557892,103630.0,103620.0,0.26416348]
[1750456852029,6.70557892,103630.0,103620.0,0.27381394]
[1750456852465,6.70557892,103630.0,103620.0,0.28346458]
[1750456853593,6.70557892,103630.0,103620.0,0.29311494]
[1750456854619,6.70557892,103630.0,103620.0,0.29432494]
[1750456856492,6.70557892,103630.0,103620.0,0.29311494]
[1750456857548,6.70557892,103630.0,103620.0,0.28346458]
[1750456858008,6.7510533,103630.0,103620.0,0.28346458]
[1750456858779,6.70557892,103630.0,103620.0,0.28346458]
[1750456860795,6.70557892,103630.0,103620.0,0.26416357]
[1750456861019,6.70557892,103630.0,103620.0,0.0302]
[1750456861460,6.80085785,103630.0,103620.0,0.0302]
[1750456863230,6.80285785,103630.0,103620.0,0.0302]